Cogmind - Beta 15 @@@ ROGUE MODE // 2025.09.30 @ 20:46:23 Player: Figgis Result: Destroyed by BF-EH6(R) with Subdweller Machine Gun Performance ------------- Evolutions (0) 0 Regions Visited (3) 600 Robots Destroyed (24) 120 Value Destroyed (454) 454 Prototype IDs (0) 0 Alien Tech Used (0) 0 Bonus (0) 0 TOTAL SCORE: 1174 Bonus ------- None Cogmind --------- Core Integrity 0/250 Matter 257/300 Energy 88/100 System Corruption 0% Temperature Cool (0) Movement Walking (105) Location -10/Subcaves Parts ------- > --- POWER (1) -------- (None) > --- PROPULSION (2) --- Carbon-fiber Leg VSS Leg > --- UTILITY (2) ------ Small Storage Unit Improved Terrain Scanner > --- WEAPON (2) ------- Missile Launcher Mining Claw > --- INVENTORY (8) ---- Nuclear Core Aluminum Leg Carbon-fiber Leg Cesium-ion Thruster Hardlight Generator Light Assault Rifle Light Assault Rifle Peak State ------------ > --- POWER ------------ Light Nuclear Core > --- PROPULSION ------- Carbon-fiber Leg VSS Leg > --- UTILITY ---------- Small Storage Unit Improved Terrain Scanner > --- WEAPON ----------- Light Assault Rifle Light Assault Rifle > --- INVENTORY -------- Nuclear Core Carbon-fiber Leg Cesium-ion Thruster Improved Terrain Scanner Hardlight Generator Light Assault Rifle Missile Launcher Mining Claw [Rating: 17] Favorites ----------- Power Light Nuclear Core Engine Ion Engine Power Core Light Nuclear Core Propulsion Aluminum Leg Leg Aluminum Leg Utility Improved Terrain Scanner Device Improved Terrain Scanner Storage Small Storage Unit Weapon Light Assault Rifle Ballistic Gun Light Assault Rifle Launcher Missile Launcher Slashing Weapon Mining Claw Build | -11 -10 -10 -10 ------- Run | Yrd Mat Min Sub Slots Evolved . | . . . . Power . | . . . . Propulsion . | . . . . Utility . | . . . . Weapon . | . . . . Parts Attached 23 | 5 4 12 2 Power 3 | . 2 1 . Engine 2 | . 2 . . Core 1 | . . 1 . Reactor . | . . . . Propulsion 8 | 2 . 6 . Treads . | . . . . Leg 8 | 2 . 6 . Wheel . | . . . . Hover . | . . . . Flight . | . . . . Utility 4 | 1 2 1 . Device 2 | 1 . 1 . Storage 2 | . 2 . . Processor . | . . . . Hackware . | . . . . Protection . | . . . . Artifact . | . . . . Weapon 8 | 2 . 4 2 Energy Gun . | . . . . Energy Cannon . | . . . . Ballistic Gun 6 | 2 . 4 . Ballistic Cannon . | . . . . Launcher 1 | . . . 1 Special Weapon . | . . . . Impact Weapon . | . . . . Slashing Weapon 1 | . . . 1 Piercing Weapon . | . . . . Special Melee Weapon . | . . . . Unidentified Prototypes . | . . . . Parts Lost 2 | . 1 . 1 Power 2 | . 1 . 1 Propulsion . | . . . . Utility . | . . . . Weapon . | . . . . Highest Loss Streak 1 | . 1 . 1 To Critical Strikes . | . . . . Average Backups 7 | 3 6 7 7 Power . | 1 . . 1 Propulsion 1 | . 1 2 3 Utility 1 | 1 1 1 1 Weapon 2 | 1 2 3 2 Tool/Special . | . . . . Unused Backups 9 | . 2 3 4 Power 1 | . . . 1 Propulsion 2 | . . . 2 Utility 2 | . 1 . 1 Weapon 4 | . 1 3 . Tool/Special . | . . . . Average Slot Usage (%) 98 | . 95 100 98 Engine 4 | . 11 . . Core 8 | . . 13 12 Leg 28 | . 28 28 28 Device 14 | . 14 14 14 Storage 13 | . 12 14 14 Ballistic Gun 27 | . 28 28 24 Peak Build Rating 17 | 7 10 17 16 Average Rating 11 | 3 9 14 15 On Entrance 8 | . 7 10 16 Naked Turns . | . . . . Heaviest Build 14 | 3 13 14 14 Greatest Support 27 | 3 20 27 27 Greatest Overweight (x) 1 | . . 1 . Average Overweight (x) . | . . . . Largest Inventory Capacity 25 | 5 25 8 8 Average Capacity 7 | 5 7 8 8 Most Carried 9 | 5 9 8 7 Average Carried 7 | 3 6 7 7 Final Capacity 8 | 5 8 8 8 Final Carried 8 | 5 8 7 7 Class Distribution -------------------- 56% | Scavenger-Mutant 43% | Mutant Dominant Class ---------------- Mutant | -10/Materials Scavenger-Mutant | -10/Mines Scavenger-Mutant | -10/Subcaves Resources | -11 -10 -10 -10 ----------- Run | Yrd Mat Min Sub Matter Collected 688 | 292 88 298 10 Remotely . | . . . . Salvage Created 722 | 167 245 271 39 Parts 47 | 17 12 16 2 Haulers Intercepted . | . . . . Recyclers Shooed 1 | 1 . . . Parts Field Recycled . | . . . . Retrieved Matter . | . . . . Parts Self-Destructed 3 | . . . 3 Prevented . | . . . . Kills | -11 -10 -10 -10 ------- Run | Yrd Mat Min Sub Combat Hostiles Destroyed 17 | . 6 10 1 Guns 16 | . 6 10 . AOE 1 | . . . 1 Classes Destroyed 5 | 2 2 . 1 Tunneler 5 | 5 . . . Recycler 2 | 1 1 . . Swarmer 9 | . 3 6 . Grunt 7 | . 3 4 . Subdweller 1 | . . . 1 Best Kill Streak 5 | 3 5 3 1 Combat Bots Only 4 | . 4 3 1 Max Kills in Single Turn 1 | 1 1 1 1 Gunslinging . | . . . . Exploded 1 | . . . 1 Melee . | . . . . Uniques/NPCs Destroyed . | . . . . Combat | -11 -10 -10 -10 -------- Run | Yrd Mat Min Sub Hostile Shots Fired 123 | . 37 83 3 Missed 36 | . 12 23 1 Hits 87 | . 25 60 2 Projectile 87 | . 25 60 2 AOE 1 | . . . 1 Critical Strikes 2 | . . 2 . Damage Taken 1043 | . 301 644 98 Core 256 | . 59 149 48 Absorbed by Shields . | . . . . Core Remaining (%) 100 | 100 . . . Volleys Fired 115 | 27 44 41 3 Largest 2 | 2 2 2 2 Hottest 40 | 40 40 40 40 Shots Fired 228 | 54 88 82 4 Gun 226 | 54 88 82 2 Cannon . | . . . . Launcher 2 | . . . 2 Special . | . . . . Kinetic 226 | 54 88 82 2 Thermal . | . . . . Explosive 2 | . . . 2 Electromagnetic . | . . . . Robot Hit Streak 12 | 5 9 12 3 Robot Miss Streak 6 | 3 6 3 . Penetration Max . | . . . . Secondary Targets 3 | . . 3 . Max Gunslinging Chain 1 | . . 1 . Shots Hit Robots 132 | 30 47 53 2 Core Hits 53 | 11 19 20 3 Critical Kills 1 | . . 1 . Critical Parts Destroyed 2 | . 1 1 . Critical Strikes 3 | . 1 2 . Destroy 3 | . 1 2 . Melee Attacks 1 | . . . 1 Impact . | . . . . Slashing 1 | . . . 1 Piercing . | . . . . Sneak Attacks . | . . . . Combat Hostiles . | . . . . Follow-up Attacks . | . . . . Damage Inflicted 1332 | 243 396 480 213 Guns 1119 | 243 396 480 . Cannons . | . . . . Explosions 213 | . . . 213 Melee . | . . . . Ramming . | . . . . Kinetic 1119 | 243 396 480 . Thermal . | . . . . Explosive 213 | . . . 213 Electromagnetic . | . . . . Impact . | . . . . Slashing . | . . . . Piercing . | . . . . Highest Corruption . | . . . . Average Corruption . | . . . . Corruption Purged . | . . . . Corruption Blocked . | . . . . Overload Shots . | . . . . Overflow Damage . | . . . . Projectiles . | . . . . Explosions . | . . . . Melee . | . . . . Knockbacks . | . . . . Impact . | . . . . Kinetic . | . . . . Secondary . | . . . . Self-Inflicted Damage . | . . . . Shots . | . . . . Rammed . | . . . . Targets Rammed . | . . . . Kicked . | . . . . Crushed . | . . . . Highest Temperature 56 | . 18 56 . Average Temperature 12 | . 10 12 . Received Heat Transfer 369 | . 141 228 . Siege Activations . | . . . . Martial Activations . | . . . . Shielding Activations . | . . . . Robots Disrupted . | . . . . Combat Hostiles . | . . . . Robots Corrupted . | . . . . Combat Hostiles . | . . . . Parts Fried . | . . . . Impact Corruptions . | . . . . Robots Melted . | . . . . Combat Hostiles . | . . . . Parts Melted . | . . . . Heat Transferred . | . . . . Parts Sabotaged . | . . . . Parts Stolen . | . . . . Parts Stripped . | . . . . Power Chain Reactions . | . . . . Alert | -11 -10 -10 -10 ------- Run | Yrd Mat Min Sub Maximum Alert Level . | . . . . Low Security (%) 100 | 100 100 100 . Level 1 . | . . . . Level 2 . | . . . . Level 3 . | . . . . Level 4 . | . . . . Level 5 . | . . . . High Security . | . . . . Max Security . | . . . . Peak Influence 110 | 10 110 62 . Initial 5 | . 3 5 . Average 20 | 2 31 15 . Influence Increases 487 | 30 217 240 . Destroy 0b10 Robot/C 320 | . 120 200 . Destroy 0b10 Robot/NC 35 | 30 5 . . Destroy Leader 60 | . 20 40 . Successful Hack 12 | . 12 . . Lose Combat Pursuer 60 | . 60 . . Influence Decreases 487 | 25 207 255 . Entered New Map 12 | . 2 10 . Time Decay 465 | 25 195 245 . Lost Part 10 | . 10 . . Squads Dispatched 4 | . 3 1 . Investigation 1 | . . 1 . Extermination . | . . . . Reinforcement 3 | . 3 . . Assault . | . . . . Garrison . | . . . . Intercept . | . . . . Searches Triggered . | . . . . Construction Impeded . | . . . . Haulers Reinforced . | . . . . Active Scanning Responses . | . . . . Cargo Convoy Interrupts . | . . . . Stealth | -11 -10 -10 -10 --------- Run | Yrd Mat Min Sub Distress Signals . | . . . . Communications Jammed . | . . . . Distress Signals . | . . . . Times Spotted 34 | . 20 12 2 Peak Tracking Total 4 | . 4 3 2 Tactical Retreats 3 | . 3 . . Traps | -11 -10 -10 -10 ------- Run | Yrd Mat Min Sub Traps Triggered 1 | . 1 . . Indirectly . | . . . . Trap Hack Attempts . | . . . . Triggered . | . . . . Disarmed . | . . . . Reprogrammed . | . . . . Reused . | . . . . Traps Extracted . | . . . . Installed . | . . . . Triggered . | . . . . Machines | -11 -10 -10 -10 ---------- Run | Yrd Mat Min Sub Machines Disabled . | . . . . Max in Single Turn . | . . . . Machines Repaired . | . . . . Machines Dismantled . | . . . . Machines Sabotaged . | . . . . Overloaded Fab Kills . | . . . . Hacking | -11 -10 -10 -10 --------- Run | Yrd Mat Min Sub Machines Accessed 3 | . 2 1 . Terminals 2 | . 2 . . Fabricators . | . . . . Repair Stations . | . . . . Recycling Units . | . . . . Scanalyzers . | . . . . Garrison Access . | . . . . Total Hacks 8 | . 7 1 . Successful 4 | . 3 1 . Failed 4 | . 4 . . Catastrophic 1 | . 1 . . Database Lockouts . | . . . . Manual 7 | . 7 . . Terminals 7 | . 7 . . Fabricators . | . . . . Repair Stations . | . . . . Recycling Units . | . . . . Scanalyzers . | . . . . Garrison Access . | . . . . Terminal Hacks 4 | . 3 1 . Robot Analysis 3 | . 3 . . Open Door 1 | . . 1 . Fabricator Hacks . | . . . . Repair Station Hacks . | . . . . Recycling Unit Hacks . | . . . . Scanalyzer . | . . . . Garrison Access Hacks . | . . . . Unauthorized Hacks . | . . . . Terminals . | . . . . Fabricators . | . . . . Repair Stations . | . . . . Recycling Units . | . . . . Scanalyzers . | . . . . Garrison Access . | . . . . Data Cores Recovered . | . . . . Used . | . . . . Hacking Detections 2 | . 2 . . Full Trace Events . | . . . . Feedback Events . | . . . . Feedback Blocked . | . . . . Robot Schematics Acquired . | . . . . Robots Built . | . . . . Authchips . | . . . . Time . | . . . . Total Robot Build Rating . | . . . . Part Schematics Acquired . | . . . . Parts Built . | . . . . Authchips . | . . . . Time . | . . . . Total Part Build Rating . | . . . . Parts Repaired . | . . . . Time . | . . . . Parts Recycled . | . . . . Recycled Matter . | . . . . Retrieved Matter . | . . . . Retrieved Components . | . . . . Parts Scanalyzed . | . . . . Part Schematics Acquired . | . . . . Parts Damaged . | . . . . Bothacking | -11 -10 -10 -10 ------------ Run | Yrd Mat Min Sub Used RIF Installer . | . . . . Robots Hacked . | . . . . Non-combat . | . . . . Combat . | . . . . Robot Hacks Applied . | . . . . Relay Couplers Released . | . . . . Fabnet Peak Effective % . | . . . . Robots Rewired . | . . . . Allies Hacked . | . . . . Hacks Repelled . | . . . . Allies | -11 -10 -10 -10 -------- Run | Yrd Mat Min Sub Total Allies . | . . . . Largest Group . | . . . . Highest-Rated Group . | . . . . Highest-Rated Ally . | . . . . Total Orders . | . . . . Ally Attacks . | . . . . Total Damage . | . . . . Kills . | . . . . Allies Corrupted . | . . . . Allies Melted . | . . . . Intel | -11 -10 -10 -10 ------- Run | Yrd Mat Min Sub Active Infowar (turns) 1533 | 3 557 873 100 Terrain 1533 | 3 557 873 100 Robot Analysis Total 3 | . 3 . . Derelict Logs Recovered 2 | . . 2 . Drone Launches . | . . . . Drone Recoveries . | . . . . Exploration | -11 -10 -10 -10 ------------- Run | Yrd Mat Min Sub Turns Passed 1660 | 128 557 875 100 Spaces Moved 1229 | 86 434 655 54 Core 232 | 86 146 . . Treads . | . . . . Legs 997 | . 288 655 54 Wheels . | . . . . Hover . | . . . . Flight . | . . . . Fastest Speed 50 | 50 50 105 105 Average Speed 101 | 50 96 110 105 Slowest Speed 180 | 50 120 180 105 Overloaded Moves . | . . . . Propulsion Burnouts . | . . . . Robots Hopped . | . . . . Potential Cave-ins . | . . . . Cave-ins Triggered . | . . . . Exploration Rate (%) 46 | 4 76 99 7 Regions Visited 3 Branch Regions 2 Pre-discovered Areas 2 | . . 1 1 Known Exits Taken . | . . . . Unknown Exits Taken 3 | 1 1 1 . Scrap Searched 1 | . . 1 . Spaces Dug . | . . . . Terrain Destroyed 25 | . . . 25 Melee . | . . . . Projectile . | . . . . AOE 25 | . . . 25 Terrain Rammed . | . . . . Walls Destroyed . | . . . . Machines Disabled . | . . . . Actions | -11 -10 -10 -10 --------- Run | Yrd Mat Min Sub Total 1465 | 126 503 746 90 Wait 48 | . 6 12 30 Move 1226 | 85 433 654 54 Hop . | . . . . Pick Up 27 | 9 10 8 . Fast Attach 1 | 1 . . . Attach 9 | 4 5 . . Detach . | . . . . Swap 17 | . 2 13 2 Drop 21 | . 3 18 . Fire 115 | 27 44 41 3 Melee 1 | . . . 1 Ram . | . . . . Kick . | . . . . Crush . | . . . . Escape Stasis . | . . . . Rewire . | . . . . Trap . | . . . . Miscellaneous . | . . . . Route ------- -11/Scrapyard -10/Materials (discovered 4 exits: *Mat x2 / *Min x2) -10/Mines (discovered 4 exits: *Mat x2 / [*Exi] / [*Sub]) -10/Subcaves History --------- Turn | Location | Event 21 | -11/Scrapyard | Discovered new exit (range 15) 129 | -11/Scrapyard | Entered Materials 303 | -10/Materials | Build established: Mutant 363 | -10/Materials | Discovered new exit (range 8) 461 | -10/Materials | Discovered new exit (range 3) 544 | -10/Materials | Discovered new exit (range 6) 558 | -10/Materials | Discovered new exit (range 8) 686 | -10/Materials | Entered Mines 785 | -10/Mines | Received a Rocket Launcher from a helpful Derelict 892 | -10/Mines | Discovered new exit (range 9) 932 | -10/Mines | Identified exit to Materials 993 | -10/Mines | Met a Derelict shopkeep closing up shop 1033 | -10/Mines | Build established: Scavenger-Mutant 1075 | -10/Mines | Core integrity fell below 50% 1128 | -10/Mines | Discovered new exit (range 7) 1193 | -10/Mines | Core integrity fell below 20% 1280 | -10/Mines | Learned Materials emergency access door positions 1341 | -10/Mines | Learned location of Storage (-9) 1427 | -10/Mines | Deemed a non-threat by the Exiles lab entrance 1427 | -10/Mines | Discovered new exit (range 5) 1561 | -10/Mines | Entered Subcaves 1562 | -10/Subcaves | Approached by a straggling Scientist 1628 | -10/Subcaves | Learned location of Zion (-6) 1628 | -10/Subcaves | Met a Zionite searching for "candidates" 1661 | -10/Subcaves | Destroyed by BF-EH6(R) with Subdweller Machine Gun Last Messages --------------- GOAL=ESCAPE 01562_ VT-1AM(c): "Thank the algorithms! I was beginning to lose hope I'd never make it past all the Subs lurking out here." 01564_ YZ-UTY(z): "She is not going to be happy we haven't found any suitable candidates yet." 01565_ VT-1AM(c): "Hey, let me tag along and I can get us both out of this nasty situation. At least I think I can... The group I got separated from was talking about a shortcut back to the UFD." VT-1AM(c): "I think it's somewhere west of here" 01628_ YZ-UTY(z): "Hey you! It's really dangerous down here, I feel that you could die at any moment. For your health and safety might I suggest a trip to Zion?" World map updated: -6/Zion. 01628_ MJ-KHR(u) builds Twisted Machinery. 01638_ Acquired 7 matter. 01639_ Acquired 3 matter. 01654_ Lgt. Nuclear Core destroyed. 01654_ VT-1AM(c) destroyed. 01657_ ZE-UYP(R) destroyed. 01660_ BF-EH6(R) affixes Scrap Shield Fragment to Scrap Shield. Map ----- +----------------------------------------------------+ | ?????????????????????????????????????????????????? | | ?????????????????????????????????????????????????? | | ?????????????????????????????????????????????????? | | ?????????????????????????????????????????????????? | | ?????????????????????????????????????????????????? | | ?????????????????????????????????????????????????? | | ?????????????????????????????????????????????????? | | ?????????????????????????????????????????????????? | | ?????????????????????????????????????????????????? | | ?????????????????????????????????????????????????? | | ?????????????????????????? #?????????????????????? | | ????????????????????????? ##???????????????????? | | ?????????????????????###"" #???????????????????? | | ?????????????????????# " #???????????????????? | | ?????????????????????# * #???????????????????? | | ????????????????????? O % #???????????????????? | | ?????????????????????# =R ##????#??????????? ? | | ????????????????????? # ##?????????????? | | ?????????????????????# ##???????????? | | ?????????????????????# ????????????? | | ????????????????????##; ???????????## | | ????????????????????#;; ???????????# # ?? | | ????????????????????#; ???????????? ??? | | ???????????????????##; ;#????????????? ???? | | ??????????????#????#; ;#####???????## #????? | | ???????????????????# ;;@ #??????## #####? | | ???????????????????#; ;;;; ! #?#???## "#? | | ???????????????????###### %; ###?#### " ## | | ????????????????????????# "! %### | | ????????????????????????# " % | | ????????????????????????##### ### ##### | | ???????????????????????#????#### #### ####???? | | ???????????????????????????????## #?## #?????? | | ???????????????????????????????# #?## ####???? | | ???????????????????????????????## #?## ##??## | | ?????????????????????????????#### ##?# #### | | ???????????????????#????????## #?## ## | | ????????????????????????????# ## | | ???????????????????????????# | | ???????????????????????????# | | ??????????????????????????## ### ### | | ????????????????????????????????####?#### ###### | | ??????????????????????????????????#??#??# ##???# | | ????????????????????????????????????????# #???# | | ????????????????????????????????????????# #???# | | ??????????????????????????????????????#?# #??? | | ????????????????????????????????????????## ##### | | ?????????????????????????????????????????# ## | | ???????????????????????????????????????### # | | ?????????????????????????????????????????# # | +----------------------------------------------------+ Best States ------------- Heat Dissipation 25 Energy Generation 14 Energy Capacity 250 Matter Stores 300 Matter Capacity 300 Sight Range 16 Terrain Scan Range 16 Terrain Scan Density 10 Evasion (%) 55 Item Schematics ----------------- None Robot Schematics ------------------ None Fabricated ------------ Nothing Repaired ---------- Nothing Alien Tech Used ----------------- None Achievements -------------- None Challenges ------------ None Game ------ Seed BladeRainbowBeam Manual? 0 Play Time 00:19:10 Cumulative 195.1 hours Start 2025.09.30 @ 18:45:10 End 2025.09.30 @ 20:46:23 Sessions 1 Manual Loads 0 Difficulty Rogue Special Mode None Game No. 312 Rogue 309 Adventurer 3 Explorer 0 Win Type - Total 1 Types 1/0/0/0/0/0/0/0/0/0 Lore% 65 Gallery% 60 Achievement% 47 Wizard Run 0 Options --------- Layout 0 ASCII 0 Keyboard 0 Movement Mouse Keybinds 0 Fullscreen 2 Font 18/SmallcapsGlow Map View 76x50 Zoom Use 0% Tactical HUD 1 Map Filters NONE Filters NONE Steam 1 RUN: cfd54621-d613-490f-8c3e-65dde8977395